Cogmind - Beta 15 @@@ ROGUE MODE // 2025.08.10 @ 15:14:00 Player: Klevski Result: Destroyed by P-80 Master with Gamma Rifle Performance ------------- Evolutions (7) 3500 Regions Visited (11) 2200 Robots Destroyed (99) 495 Value Destroyed (5373) 5373 Prototype IDs (36) 720 Alien Tech Used (2) 400 Bonus (1461) 1461 TOTAL SCORE: 14149 Bonus ------- High Alert Combat Kills 279 Follower Combat Kills 82 Registered with UFD 300 Met Optimus in HQ 500 Met Zhirov 300 Cogmind --------- Core Integrity 0/1300 Matter 124/300 Energy 80/100 System Corruption 13% Temperature Cool (0) Movement Flying (40) Location -3/Research Parts ------- > --- POWER (3) -------- (None) > --- PROPULSION (4) --- Q-thruster > --- UTILITY (11) ----- Advanced Visual Processing Unit Advanced Target Analyzer Advanced Hacking Suite > --- WEAPON (3) ------- Plasma Lance > --- INVENTORY (5) ---- Cooled Antigrav System Experimental Thermal Shield Fusion Bomb Launcher Peak State ------------ > --- POWER ------------ F-cell Engine F-cell Engine Cooled Fission Core > --- PROPULSION ------- Armored Medium Treads Armored Medium Treads Armored Medium Treads Advanced Medium Treads > --- UTILITY ---------- Advanced Power Amplifier Improved Cryofiber Web Advanced Cooling System Large Storage Unit Improved Trap Scanner Experimental Sensor Array Advanced Signal Interpreter Advanced Targeting Computer Improved Particle Charger Graphene Brace Advanced Force Field > --- WEAPON ----------- Nova Cannon Nova Cannon Nova Cannon > --- INVENTORY -------- Cooled Fission Core Improved Treads Advanced Heat Sink Coolant Network Energy Well Improved Medium Armor Plating Powered Armor Improved Powered Armor Improved Focal Shield Advanced Point Defense System Heavy Phase Cannon Heavy Neutron Cannon Heavy Shock Bomb Launcher Advanced Datajack [Rating: 138] Favorites ----------- Power F-cell Engine Engine F-cell Engine Power Core Cooled Fission Core Reactor Light Antimatter Reactor Propulsion Armored Medium Treads Treads Armored Medium Treads Leg Aluminum Leg Hover Unit Cooled Gravmag System Flight Unit Impulse Thruster Array Utility Large Storage Unit Device Improved Cryofiber Web Storage Large Storage Unit Processor Improved Signal Interpreter Hackware System Shield Protection Improved Powered Armor Weapon Advanced Plasma Cannon Energy Gun Heavy EM Pulse Gun Energy Cannon Advanced Plasma Cannon Ballistic Gun Assault Rifle Launcher Mini Grenade Launcher Special Weapon Junk Cannon Piercing Weapon Force Lance Special Melee Weapon Datajack Build | -11 -10 -10 -8 -6 -5 -5 -5 -5 -4 -4 -3 ------- Run | Yrd Mat Sub Scr Fac Fac Upp Upp Zhi Pro Fac Res Slots Evolved 14 | . . . . 8 2 . . . . 2 2 Power 2 | . . . . . 1 . . . . . 1 Propulsion 2 | . . . . 2 . . . . . . . Utility 9 | . . . . 6 1 . . . . 1 1 Weapon 1 | . . . . . . . . . . 1 . Parts Attached 116 | 6 3 8 10 25 12 1 . 3 2 13 33 Power 13 | 1 . 1 2 4 1 . . . . . 4 Engine 9 | 1 . 1 2 4 1 . . . . . . Core 2 | . . . . . . . . . . . 2 Reactor 2 | . . . . . . . . . . . 2 Propulsion 28 | 2 . 2 4 4 4 1 . . . 4 7 Treads 17 | 2 . . 2 3 4 1 . . . 4 1 Leg 4 | . . 2 2 . . . . . . . . Wheel . | . . . . . . . . . . . . Hover 1 | . . . . . . . . . . . 1 Flight 6 | . . . . 1 . . . . . . 5 Utility 47 | 1 1 1 3 12 5 . . 3 1 6 14 Device 25 | . . 1 1 7 2 . . 1 . 4 9 Storage 4 | 1 . . 2 . . . . 1 . . . Processor 7 | . . . . 1 2 . . . . 2 2 Hackware 3 | . 1 . . 1 . . . . . . 1 Protection 8 | . . . . 3 1 . . 1 1 . 2 Artifact . | . . . . . . . . . . . . Weapon 28 | 2 2 4 1 5 2 . . . 1 3 8 Energy Gun 4 | . 2 2 . . . . . . . . . Energy Cannon 15 | . . . . 4 2 . . . 1 2 6 Ballistic Gun 2 | 2 . . . . . . . . . . . Ballistic Cannon . | . . . . . . . . . . . . Launcher 3 | . . 2 . . . . . . . 1 . Special Weapon 1 | . . . 1 . . . . . . . . Impact Weapon . | . . . . . . . . . . . . Slashing Weapon . | . . . . . . . . . . . . Piercing Weapon 2 | . . . . . . . . . . . 2 Special Melee Weapon 1 | . . . . 1 . . . . . . . Unidentified Prototypes 14 | . . 1 1 3 . . . 4 . . 5 Parts Lost 36 | . . 4 . 1 . 1 . . . 2 28 Power 5 | . . . . . . . . . . . 5 Propulsion 13 | . . 1 . 1 . . . . . 2 9 Utility 11 | . . . . . . 1 . . . . 10 Weapon 7 | . . 3 . . . . . . . . 4 Highest Loss Streak 12 | . . 2 . 1 . 1 . . . 1 12 To Critical Strikes 1 | . . 1 . . . . . . . . . Average Backups 12 | 3 7 6 12 14 14 14 14 14 13 14 9 Power . | . 1 1 . 1 . . . . . . . Propulsion 1 | 2 3 2 1 1 . . . . . . 1 Utility 6 | . . . 6 6 8 9 8 8 7 8 5 Weapon 3 | . 3 2 3 3 4 4 4 6 4 3 2 Tool/Special . | . . . . . . . . . . . . Unused Backups 35 | . 2 1 5 9 3 . 2 2 . 2 9 Power 5 | . . . . 4 1 . . . . . . Propulsion 8 | . 1 1 1 2 . . . . . 1 2 Utility 13 | . . . 1 2 1 . 1 2 . 1 5 Weapon 7 | . 1 . 2 1 1 . 1 . . . 1 Tool/Special 2 | . . . 1 . . . . . . . 1 Average Slot Usage (%) 91 | . 98 92 81 93 98 99 100 87 99 99 63 Engine 9 | . 14 15 14 5 10 11 11 11 11 10 3 Treads 21 | . 28 23 22 24 22 23 23 23 23 20 10 Device 19 | . . 2 5 21 21 23 29 27 28 30 20 Storage 6 | . 14 13 13 6 5 5 5 5 5 5 2 Processor 7 | . . . . 5 10 16 11 11 11 10 6 Hackware 2 | . 12 11 . 5 4 . . . . . 1 Protection 4 | . . . . 9 6 5 5 5 5 5 1 Energy Gun 1 | . 22 20 . . . . . . . . . Energy Cannon 7 | . . . . 8 8 11 11 . 10 14 8 Launcher 2 | . . 4 11 1 1 . . . . . . Special Weapon 1 | . . . 7 . . . . . . . . Peak Build Rating 138 | 6 12 20 28 64 93 93 93 84 95 113 138 Average Rating 69 | 4 11 13 24 57 82 91 92 81 94 108 89 On Entrance 57 | . 6 12 20 28 62 93 93 82 84 95 112 Naked Turns 63 | . . . . . . . . . . . 63 Heaviest Build 138 | 13 16 20 44 62 88 89 89 72 99 112 138 Greatest Support 112 | 40 40 40 51 94 110 112 112 112 112 112 111 Greatest Overweight (x) 30 | . . . 1 . 1 . . . . 1 30 Average Overweight (x) . | . . . . . . . . . . . . Largest Inventory Capacity 15 | 8 8 8 15 15 15 15 15 15 15 15 15 Average Capacity 13 | 6 8 8 13 15 15 15 15 15 15 15 11 Most Carried 15 | 6 8 8 15 15 15 15 15 15 15 15 15 Average Carried 13 | 3 7 7 12 14 14 14 14 14 12 14 10 Final Capacity 15 | 8 8 8 15 15 15 15 15 15 15 15 5 Final Carried 15 | 6 8 7 15 14 15 14 15 15 14 15 3 Class Distribution -------------------- 59% | Mutant 27% | Skirmisher 5% | Tank 5% | Gunner Dominant Class ---------------- Mutant | -10/Materials Mutant | -10/Subcaves Mutant | -8/Scraptown Mutant | -6/Factory Skirmisher | -5/Factory Mutant | -5/Upper Caves Mutant | -5/Upper Caves Mutant | -5/Zhirov Mutant | -4/Proximity Caves Gunner | -4/Factory Mutant | -3/Research Resources | -11 -10 -10 -8 -6 -5 -5 -5 -5 -4 -4 -3 ----------- Run | Yrd Mat Sub Scr Fac Fac Upp Upp Zhi Pro Fac Res Matter Collected 2540 | 224 70 117 128 440 440 132 . 150 278 225 336 Remotely . | . . . . . . . . . . . . Salvage Created 5330 | . 73 189 . 503 525 629 73 . 354 1525 1459 Parts 221 | . 6 10 . 24 31 11 8 . 9 60 62 Haulers Intercepted 1 | . . . . . 1 . . . . . . Recyclers Shooed 2 | . . . . . 1 . . . . 1 . Parts Field Recycled . | . . . . . . . . . . . . Retrieved Matter . | . . . . . . . . . . . . Parts Self-Destructed 26 | . . . . . . 11 8 . 7 . . Prevented . | . . . . . . . . . . . . Kills | -11 -10 -10 -8 -6 -5 -5 -5 -5 -4 -4 -3 ------- Run | Yrd Mat Sub Scr Fac Fac Upp Upp Zhi Pro Fac Res Combat Hostiles Destroyed 83 | . 1 7 . 10 9 8 1 . 2 23 22 Melee 2 | . . . . . . . . . . . 2 Guns 3 | . 1 2 . . . . . . . . . Cannons 46 | . . . . 3 6 6 1 . 2 14 14 AOE 24 | . . 4 . 6 3 . . . . 6 5 Classes Destroyed 19 | . 2 1 . 4 3 3 1 . . 3 2 Worker 2 | . . . . . . . . . . . 2 Builder 5 | . . . . 2 . . . . . 1 2 Tunneler 1 | . 1 . . . . . . . . . . Hauler 1 | . . . . . 1 . . . . . . Recycler 1 | . . . . . . . . . . 1 . Carrier 1 | . . . . . . 1 . . . . . Mechanic 1 | . . . . . . . . . . 1 . Watcher 4 | . . . . 1 1 . . . . 1 1 Swarmer 18 | . . . . . 4 . . . . 9 5 Grunt 17 | . 1 . . 6 . 1 . . . 4 5 Brawler 4 | . . . . . . 2 . . . 1 1 Duelist 2 | . . . . . . 1 . . . . 1 Sentry 10 | . . . . 2 1 1 . . . 5 1 Specialist 2 | . . . . . . . . . . . 2 Hunter 10 | . . . . . 2 2 . . 2 . 4 Programmer 10 | . . . . 2 2 1 . . . 3 2 Heavy 2 | . . . . . . . . . . 1 1 Behemoth 1 | . . . . . . . 1 . . . . Subdweller 7 | . . 7 . . . . . . . . . Best Kill Streak 13 | . 1 5 . 5 4 4 1 . 2 8 13 Combat Bots Only 10 | . 1 5 . 3 4 3 1 . 2 8 10 Max Kills in Single Turn 3 | . 1 1 . 3 2 1 1 . 1 2 2 Gunslinging . | . . . . . . . . . . . . Exploded 2 | . . 1 . 2 2 . . . . 2 1 Melee 1 | . . . . . . . . . . . 1 Uniques/NPCs Destroyed . | . . . . . . . . . . . . Combat | -11 -10 -10 -8 -6 -5 -5 -5 -5 -4 -4 -3 -------- Run | Yrd Mat Sub Scr Fac Fac Upp Upp Zhi Pro Fac Res Hostile Shots Fired 849 | . 3 36 . 50 48 36 27 . 68 155 426 Missed 306 | . 1 9 . 18 14 8 9 . 20 58 169 Hits 543 | . 2 27 . 32 34 28 18 . 48 97 257 Melee 6 | . . . . . . 2 . . . . 4 Projectile 537 | . 2 27 . 32 34 26 18 . 48 97 253 AOE 2 | . . 1 . . . . . . . 1 . Critical Strikes 27 | . . 2 . 1 . . . . 2 4 18 Actively Blocked 13 | . . . . . . . . . . . 13 Damage Taken 9216 | . 33 713 . 487 312 316 249 . 635 955 5516 Core 1802 | . . 196 . 78 9 12 32 . 51 112 1312 Absorbed by Shields 2134 | . . . . . 326 251 179 . 210 646 522 Ignored by Resistances 252 | . . . . . . . . . . 194 58 Regen/Repaired (Parts) 338 | . . . . . 137 . . . . 201 . Core Remaining (%) 76 | 100 . . 21 90 . . . . 83 90 . Volleys Fired 275 | . 7 19 . 70 29 19 8 . 14 54 55 Largest 3 | . 2 2 . 2 2 2 2 . 2 3 3 Hottest 339 | . 90 90 . 170 188 188 188 . 196 286 339 Shots Fired 485 | . 14 27 . 89 41 38 16 . 27 108 125 Gun 33 | . 14 19 . . . . . . . . . Cannon 412 | . . . . 80 39 38 16 . 27 101 111 Launcher 40 | . . 8 . 9 2 . . . . 7 14 Special . | . . . . . . . . . . . . Kinetic 2 | . 2 . . . . . . . . . . Thermal 412 | . . . . 80 39 38 16 . 27 101 111 Explosive 19 | . . 8 . 9 2 . . . . . . Electromagnetic 52 | . 12 19 . . . . . . . 7 14 Robot Hit Streak 31 | . 2 25 . 31 13 10 9 . 10 19 16 Robot Miss Streak 4 | . 4 1 . 4 3 2 2 . 2 3 2 Penetration Max . | . . . . . . . . . . . . Secondary Targets . | . . . . . . . . . . . . Shots Hit Robots 317 | . 5 25 . 30 28 28 9 . 18 69 105 Core Hits 177 | . 3 13 . 23 18 12 3 . 7 38 60 Critical Kills 5 | . . . . . . 3 . . . 1 1 Critical Parts Destroyed . | . . . . . . . . . . . . Critical Strikes 6 | . . 1 . . . 3 . . . 1 1 Meltdown 5 | . . . . . . 3 . . . 1 1 Corrupt 1 | . . 1 . . . . . . . . . Melee Attacks 13 | . . . . . . . . . . . 13 Impact . | . . . . . . . . . . . . Slashing . | . . . . . . . . . . . . Piercing 13 | . . . . . . . . . . . 13 Sneak Attacks . | . . . . . . . . . . . . Combat Hostiles . | . . . . . . . . . . . . Follow-up Attacks . | . . . . . . . . . . . . Damage Inflicted 15875 | . 71 850 . 1793 1269 1086 384 . 703 3565 6154 Guns 323 | . 71 252 . . . . . . . . . Cannons 10512 | . . . . 809 1061 1086 384 . 703 2670 3799 Explosions 4621 | . . 598 . 984 208 . . . . 895 1936 Melee 419 | . . . . . . . . . . . 419 Ramming . | . . . . . . . . . . . . Kinetic 21 | . 21 . . . . . . . . . . Thermal 11423 | . . . . 1072 1061 1086 384 . 703 2670 4447 Explosive 1822 | . . 598 . 721 208 . . . . 295 . Electromagnetic 2190 | . 50 252 . . . . . . . 600 1288 Impact . | . . . . . . . . . . . . Slashing . | . . . . . . . . . . . . Piercing 419 | . . . . . . . . . . . 419 Highest Corruption 13 | . . . . . . 5 5 5 5 3 13 Average Corruption 4 | . . . . . . 5 5 5 5 2 4 Corruption Purged . | . . . . . . . . . . . . Corruption Blocked . | . . . . . . . . . . . . Effects 51 | . . . . . . 3 16 5 12 7 8 Message Errors 15 | . . . . . . . 7 1 1 3 3 Matter Fused 5 | . . . . . . 1 1 1 1 . 1 Heat Flow Errors 8 | . . . . . . 1 2 1 1 . 3 Energy Discharges 10 | . . . . . . 1 5 . 2 2 . Data Loss (minor) 9 | . . . . . . . 1 1 5 1 1 Data Loss (major) 1 | . . . . . . . . . 1 . . Alerts 1 | . . . . . . . . 1 . . . Weapon Failures 2 | . . . . . . . . . 1 1 . Overload Shots . | . . . . . . . . . . . . Overflow Damage 536 | . . . . 194 19 33 . . 3 122 165 Projectiles 281 | . . . . 32 19 33 . . 3 75 119 Explosions 253 | . . . . 162 . . . . . 47 44 Melee 2 | . . . . . . . . . . . 2 Knockbacks . | . . . . . . . . . . . . Impact . | . . . . . . . . . . . . Kinetic . | . . . . . . . . . . . . Secondary . | . . . . . . . . . . . . Self-Inflicted Damage 183 | . . 80 . 8 . . . . . 4 91 Shots 14 | . . 6 . 1 . . . . . 1 6 Rammed . | . . . . . . . . . . . . Targets Rammed . | . . . . . . . . . . . . Kicked . | . . . . . . . . . . . . Crushed . | . . . . . . . . . . . . Highest Temperature 491 | . 108 . . 353 311 . . . 491 275 380 Average Temperature 134 | . 43 . . 130 146 . . . 197 77 149 Received Heat Transfer 924 | . 18 123 . 162 . 30 30 . . 104 457 Siege Activations . | . . . . . . . . . . . . Martial Activations . | . . . . . . . . . . . . Shielding Activations . | . . . . . . . . . . . . Robots Disrupted . | . . . . . . . . . . . . Combat Hostiles . | . . . . . . . . . . . . Robots Corrupted 3 | . . 1 . . . . . . . 2 . Combat Hostiles 3 | . . 1 . . . . . . . 2 . Parts Fried 11 | . . 4 . . . . . . . 5 2 Impact Corruptions . | . . . . . . . . . . . . Robots Melted 6 | . . . . 1 . 3 . . . 1 1 Combat Hostiles 5 | . . . . 1 . 2 . . . 1 1 Parts Melted 26 | . . . . 1 4 5 1 . 3 11 1 Heat Transferred 10138 | . . . . 1088 1296 1231 398 . 900 2795 2430 Parts Sabotaged . | . . . . . . . . . . . . Parts Stolen . | . . . . . . . . . . . . Parts Stripped . | . . . . . . . . . . . . Power Chain Reactions 4 | . . . . . . . . . . . 4 Alert | -11 -10 -10 -8 -6 -5 -5 -5 -5 -4 -4 -3 ------- Run | Yrd Mat Sub Scr Fac Fac Upp Upp Zhi Pro Fac Res Maximum Alert Level 3 | . . . . 1 . . . . . 2 3 Low Security (%) 62 | 100 100 . . 77 100 . . . . 23 11 Level 1 27 | . . . . 22 . . . . . 64 38 Level 2 5 | . . . . . . . . . . 11 21 Level 3 4 | . . . . . . . . . . . 28 Level 4 . | . . . . . . . . . . . . Level 5 . | . . . . . . . . . . . . High Security . | . . . . . . . . . . . . Max Security . | . . . . . . . . . . . . Peak Influence 836 | . 35 . . 352 172 . . . . 477 836 Initial 241 | . . . . . 172 . . . . . 241 Average 171 | . 3 . . 85 49 . . . . 259 467 Influence Increases 3782 | . 72 . . 834 354 250 30 . 60 929 1253 Destroy 0b10 Robot/C 1640 | . 20 . . 300 180 180 20 . 40 460 440 Destroy 0b10 Robot/NC 90 | . 5 . . 20 10 . . . 10 20 25 Destroy Leader 400 | . 10 . . 72 54 40 10 . 10 112 92 Allied During Kill 3 | . . . . 3 . . . . . . . Successful Hack 197 | . 7 . . 75 55 . . . . 34 26 Disable Machine 225 | . 15 . . 120 15 . . . . 45 30 Anti-Garrison Action 450 | . . . . 150 . . . . . 150 150 Destroy Structure 267 | . . . . 79 40 . . . . 78 70 Partial Spotted 15 | . . . . . . . . . . . 15 Lose Combat Pursuer 495 | . 15 . . 15 . 30 . . . 30 405 Influence Decreases 2978 | . 37 35 . 482 680 196 110 . 60 468 910 Entered New Map 444 | . . 18 . . 180 10 16 . . . 220 Time Decay 2133 | . 37 17 . 391 500 176 94 . 60 448 410 Lost Part 320 | . . . . 10 . 10 . . . 20 280 Lost Ally 81 | . . . . 81 . . . . . . . Squads Dispatched 35 | . 1 . . 9 3 . . . . 9 13 Investigation 2 | . . . . 1 . . . . . 1 . Extermination 10 | . . . . 4 2 . . . . 2 2 Reinforcement 10 | . 1 . . 2 1 . . . . 2 4 Assault 7 | . . . . 2 . . . . . 2 3 Garrison 6 | . . . . . . . . . . 2 4 Intercept . | . . . . . . . . . . . . Searches Triggered . | . . . . . . . . . . . . Construction Impeded 2 | . . . . 1 . . . . . . 1 Haulers Reinforced 1 | . . . . . . . . . . . 1 Active Scanning Responses . | . . . . . . . . . . . . Cargo Convoy Interrupts . | . . . . . . . . . . . . Stealth | -11 -10 -10 -8 -6 -5 -5 -5 -5 -4 -4 -3 --------- Run | Yrd Mat Sub Scr Fac Fac Upp Upp Zhi Pro Fac Res Distress Signals 3 | . . . . . . . . . . 1 2 Communications Jammed . | . . . . . . . . . . . . Distress Signals . | . . . . . . . . . . . . Times Spotted 154 | . 5 7 . 14 12 9 1 . 2 40 64 Peak Tracking Total 11 | . 2 3 . 4 4 3 1 . 2 7 11 Tactical Retreats 17 | . 1 . . 1 . 2 . . . 2 11 Traps | -11 -10 -10 -8 -6 -5 -5 -5 -5 -4 -4 -3 ------- Run | Yrd Mat Sub Scr Fac Fac Upp Upp Zhi Pro Fac Res Traps Triggered 6 | . . . . 1 . . . . . 4 1 Indirectly 4 | . . . . . . . . . . 4 . Trap Hack Attempts 21 | . . . . 21 . . . . . . . Triggered . | . . . . . . . . . . . . Disarmed 1 | . 1 . . . . . . . . . . Reprogrammed 4 | . . . . 4 . . . . . . . Reused . | . . . . . . . . . . . . Traps Extracted . | . . . . . . . . . . . . Installed . | . . . . . . . . . . . . Triggered . | . . . . . . . . . . . . Machines | -11 -10 -10 -8 -6 -5 -5 -5 -5 -4 -4 -3 ---------- Run | Yrd Mat Sub Scr Fac Fac Upp Upp Zhi Pro Fac Res Machines Disabled 18 | . 1 . . 9 1 . . . . 4 3 Max in Single Turn 4 | . 1 . . 4 1 . . . . 1 1 Garrison Access 4 | . . . . 1 . . . . . 2 1 Machines Repaired . | . . . . . . . . . . . . Machines Dismantled . | . . . . . . . . . . . . Machines Sabotaged . | . . . . . . . . . . . . Overloaded Fab Kills . | . . . . . . . . . . . . Hacking | -11 -10 -10 -8 -6 -5 -5 -5 -5 -4 -4 -3 --------- Run | Yrd Mat Sub Scr Fac Fac Upp Upp Zhi Pro Fac Res Machines Accessed 47 | . 3 . 4 12 10 . . 6 . 8 4 Terminals 17 | . 3 . . 5 6 . . . . 2 1 Fabricators 9 | . . . . 4 1 . . . . 2 2 Repair Stations 2 | . . . . . 1 . . . . 1 . Recycling Units 4 | . . . . 3 . . . . . 1 . Scanalyzers 2 | . . . . . 1 . . . . . 1 Garrison Access 3 | . . . . . 1 . . . . 2 . Total Hacks 156 | . 13 . 29 37 24 . . 19 . 26 8 Successful 95 | . 9 . 29 18 9 . . 19 . 9 2 Failed 61 | . 4 . . 19 15 . . . . 17 6 Catastrophic 12 | . . . . 2 5 . . . . 3 2 Database Lockouts . | . . . . . . . . . . . . Manual 55 | . 7 . . 32 9 . . . . 7 . Terminals 49 | . 13 . . 13 16 . . . . 5 2 Fabricators 20 | . . . . 9 2 . . . . 6 3 Repair Stations 6 | . . . . . 2 . . . . 4 . Recycling Units 20 | . . . . 15 . . . . . 5 . Scanalyzers 5 | . . . . . 2 . . . . . 3 Garrison Access 8 | . . . . . 2 . . . . 6 . Terminal Hacks 58 | . 4 . 29 2 3 . . 19 . 1 . Record 37 | . 1 . 29 . . . . 7 . . . Part Schematic 6 | . . . . . 2 . . 4 . . . Robot Analysis 7 | . 1 . . 2 . . . 4 . . . Prototype ID Bank 5 | . . . . . 1 . . 4 . . . Open DSF 1 | . . . . . . . . . . 1 . Locate Traps 1 | . 1 . . . . . . . . . . Disarm Traps 1 | . 1 . . . . . . . . . . Fabricator Hacks 2 | . . . . 1 . . . . . 1 . Load Schematic 1 | . . . . . . . . . . 1 . Build 1 | . . . . 1 . . . . . . . Repair Station Hacks 5 | . . . . . 2 . . . . 3 . Scan Component 3 | . . . . . 1 . . . . 2 . Repair 2 | . . . . . 1 . . . . 1 . Recycling Unit Hacks 1 | . . . . 1 . . . . . . . Report Inventory 1 | . . . . 1 . . . . . . . Scanalyzer 4 | . . . . . 2 . . . . . 2 Insert Component 2 | . . . . . 1 . . . . . 1 Analyze 2 | . . . . . 1 . . . . . 1 Garrison Access Hacks 1 | . . . . . . . . . . 1 . Seal Access 1 | . . . . . . . . . . 1 . Unauthorized Hacks 24 | . 5 . . 14 2 . . . . 3 . Terminals 12 | . 5 . . 4 2 . . . . 1 . Track 2 | . 2 . . . . . . . . . . Assimilate 1 | . . . . 1 . . . . . . . Botnet 8 | . 3 . . 2 2 . . . . 1 . Operators 1 | . . . . 1 . . . . . . . Fabricators 1 | . . . . 1 . . . . . . . Liberate 1 | . . . . 1 . . . . . . . Repair Stations . | . . . . . . . . . . . . Recycling Units 11 | . . . . 9 . . . . . 2 . Monitor 3 | . . . . 2 . . . . . 1 . Reject 2 | . . . . 2 . . . . . . . Recyclers 3 | . . . . 2 . . . . . 1 . Mask 3 | . . . . 3 . . . . . . . Scanalyzers . | . . . . . . . . . . . . Garrison Access . | . . . . . . . . . . . . Data Cores Recovered 1 | . 1 . . . . . . . . . . Used . | . . . . . . . . . . . . Hacking Detections 33 | . 3 . . 10 9 . . . . 7 4 Full Trace Events 2 | . 1 . . . . . . . . 1 . Feedback Events . | . . . . . . . . . . . . Feedback Blocked . | . . . . . . . . . . . . Robot Schematics Acquired . | . . . . . . . . . . . . Robots Built 2 | . . . . 2 . . . . . . . Authchips . | . . . . . . . . . . . . Time 81 | . . . . 81 . . . . . . . Total Robot Build Rating 2 | . . . . 2 . . . . . . . Part Schematics Acquired 8 | . . . . . 3 . . 4 . . 1 Parts Built . | . . . . . . . . . . . . Authchips . | . . . . . . . . . . . . Time . | . . . . . . . . . . . . Total Part Build Rating . | . . . . . . . . . . . . Parts Repaired 2 | . . . . . 1 . . . . 1 . Time 100 | . . . . . 44 . . . . 56 . Parts Recycled . | . . . . . . . . . . . . Recycled Matter . | . . . . . . . . . . . . Retrieved Matter . | . . . . . . . . . . . . Retrieved Components . | . . . . . . . . . . . . Parts Scanalyzed 2 | . . . . . 1 . . . . . 1 Part Schematics Acquired 2 | . . . . . 1 . . . . . 1 Parts Damaged . | . . . . . . . . . . . . Bothacking | -11 -10 -10 -8 -6 -5 -5 -5 -5 -4 -4 -3 ------------ Run | Yrd Mat Sub Scr Fac Fac Upp Upp Zhi Pro Fac Res Used RIF Installer . | . . . . . . . . . . . . Robots Hacked . | . . . . . . . . . . . . Non-combat . | . . . . . . . . . . . . Combat . | . . . . . . . . . . . . Robot Hacks Applied . | . . . . . . . . . . . . Relay Couplers Released 5 | . . . . . . . . . . 2 3 Machine Destruction 5 | . . . . . . . . . . 2 3 Fabnet Peak Effective % . | . . . . . . . . . . . . Robots Rewired . | . . . . . . . . . . . . Allies Hacked 3 | . . . . 3 . . . . . . . Hacks Repelled . | . . . . . . . . . . . . Allies | -11 -10 -10 -8 -6 -5 -5 -5 -5 -4 -4 -3 -------- Run | Yrd Mat Sub Scr Fac Fac Upp Upp Zhi Pro Fac Res Total Allies 8 | . . . . 8 . . . . . . . Largest Group 3 | . . . . 3 . . . . . . . Highest-Rated Group 108 | . . . . 108 . . . . . . . Highest-Rated Ally 41 | . . . . 41 . . . . . . . Total Orders . | . . . . . . . . . . . . Ally Attacks 29 | . . . . 29 . . . . . . . Total Damage 853 | . . . . 853 . . . . . . . Kills 6 | . . . . 6 . . . . . . . Allies Corrupted 1 | . . . . 1 . . . . . . . Allies Melted . | . . . . . . . . . . . . Intel | -11 -10 -10 -8 -6 -5 -5 -5 -5 -4 -4 -3 ------- Run | Yrd Mat Sub Scr Fac Fac Upp Upp Zhi Pro Fac Res Active Infowar (turns) 7295 | . . . 425 1689 1532 353 668 294 574 1037 723 Optics 2323 | . . . 425 . 1322 346 . . . . 230 Sensors 6059 | . . . . 1545 1356 204 668 294 574 1011 407 IFF 218 | . . . . 218 . . . . . . . Traps 2294 | . . . . 726 624 . . . . 494 450 Machine Analysis 3 | . . . . . . . . . . 3 . Robot Analysis Total 7 | . 1 . . 2 . . . 4 . . . Derelict Logs Recovered 3 | . . . . . . . 2 . 1 . . Drone Launches . | . . . . . . . . . . . . Drone Recoveries . | . . . . . . . . . . . . Exploration | -11 -10 -10 -8 -6 -5 -5 -5 -5 -4 -4 -3 ------------- Run | Yrd Mat Sub Scr Fac Fac Upp Upp Zhi Pro Fac Res Turns Passed 9976 | 79 277 509 1444 1858 1532 387 668 294 613 1323 992 Spaces Moved 5645 | 45 153 282 920 943 798 189 347 169 341 637 821 Core 221 | 6 . . . . . . . . . . 215 Treads 4797 | 39 153 263 724 943 798 189 347 169 341 637 194 Legs 215 | . . 19 196 . . . . . . . . Wheels . | . . . . . . . . . . . . Hover . | . . . . . . . . . . . . Flight 412 | . . . . . . . . . . . 412 Fastest Speed 37 | 50 160 120 110 155 155 165 165 165 165 161 37 Average Speed 150 | 145 160 157 152 159 169 165 165 165 165 168 82 Slowest Speed 1550 | 160 160 160 200 160 240 165 165 165 165 246 1550 Overloaded Moves . | . . . . . . . . . . . . Propulsion Burnouts . | . . . . . . . . . . . . Robots Hopped 5 | . . . . . . . . . . . 5 Potential Cave-ins . | . . . . . . . . . . . . Cave-ins Triggered . | . . . . . . . . . . . . Teleports 1 | . . . . . . . . 1 . . . Exploration Rate (%) 34 | 4 25 20 45 23 25 45 49 62 61 23 32 Regions Visited 11 Branch Regions 6 Pre-discovered Areas 5 | . . . 1 . . . . 3 1 . . Known Exits Taken 7 | . . . . 1 1 1 1 1 1 1 . Unknown Exits Taken 4 | 1 1 1 1 . . . . . . . . Scrap Searched 8 | . . . 3 . . 2 3 . . . . Spaces Dug 46 | . . . . 30 4 . 4 . . 8 . Terrain Destroyed 294 | . . 29 . 138 20 10 6 . 7 43 41 Melee . | . . . . . . . . . . . . Projectile 128 | . . . . 46 10 10 6 . 7 28 21 AOE 166 | . . 29 . 92 10 . . . . 15 20 Terrain Rammed . | . . . . . . . . . . . . Walls Destroyed . | . . . . . . . . . . . . Machines Disabled . | . . . . . . . . . . . . Actions | -11 -10 -10 -8 -6 -5 -5 -5 -5 -4 -4 -3 --------- Run | Yrd Mat Sub Scr Fac Fac Upp Upp Zhi Pro Fac Res Total 6671 | 56 173 321 968 1201 937 227 429 185 363 800 1011 Wait 314 | . 3 2 . 83 50 14 68 . 1 66 27 Move 5624 | 44 152 281 919 942 797 188 346 168 340 636 811 Hop 5 | . . . . . . . . . . . 5 Pick Up 97 | 6 4 6 17 20 14 1 2 2 2 10 13 Fast Attach 58 | 6 3 2 3 9 4 . . 7 . 4 20 Attach 45 | . . 5 3 9 3 1 . . 2 4 18 Detach 19 | . . 2 5 1 1 . 2 1 . 1 6 Swap 83 | . . 1 4 25 22 2 . . 3 15 11 Drop 109 | . 4 3 17 21 17 2 3 7 1 10 24 Fire 275 | . 7 19 . 70 29 19 8 . 14 54 55 Melee 13 | . . . . . . . . . . . 13 Ram . | . . . . . . . . . . . . Kick . | . . . . . . . . . . . . Crush . | . . . . . . . . . . . . Escape Stasis 8 | . . . . . . . . . . . 8 Rewire . | . . . . . . . . . . . . Trap 21 | . . . . 21 . . . . . . . Miscellaneous . | . . . . . . . . . . . . Route ------- -11/Scrapyard -10/Materials -10/Subcaves -8/Scraptown -6/Factory -5/Factory (discovered 2 exits: *Fac / *Upp) -5/Upper Caves -5/Upper Caves (discovered 2 exits: *Fac / *Zhi) -5/Zhirov -4/Proximity Caves -4/Factory (discovered 4 exits: *Res x4) -3/Research History --------- Turn | Location | Event 13 | -11/Scrapyard | Discovered new exit (range 16) 80 | -11/Scrapyard | Entered Materials 81 | -10/Materials | Met a group of wandering Federalists 250 | -10/Materials | Discovered new exit (range 12) 315 | -10/Materials | Build established: Mutant 357 | -10/Materials | Entered Subcaves 358 | -10/Subcaves | Continued accompanying wandering Federalists (5) 568 | -10/Subcaves | Shifting Twisted Machinery released Sub. Power Source 573 | -10/Subcaves | Shifting Twisted Machinery released Sub. Laser 717 | -10/Subcaves | A Subdweller sparked back to life 717 | -10/Subcaves | A Subdweller sparked back to life 717 | -10/Subcaves | A Subdweller sparked back to life 738 | -10/Subcaves | Ambushed by Subdweller buried in earth 739 | -10/Subcaves | Core integrity fell below 50% 740 | -10/Subcaves | Ambushed by Subdweller buried in earth 755 | -10/Subcaves | Found Prototype Device 755 | -10/Subcaves | Identified Power Bank 757 | -10/Subcaves | Attached Power Bank, gained temporary slots: Power x3 866 | -10/Subcaves | Entered Scraptown 902 | -8/Scraptown | Visited Supply Room 949 | -8/Scraptown | Visited CPS Storage 964 | -8/Scraptown | Heard Great Nut preacher, LISTEN AND RECITE! 981 | -8/Scraptown | Visited UFD Registry 981 | -8/Scraptown | Registered with UFD as "Electrocase" 1007 | -8/Scraptown | Visited DA-N13 Charitable Foundation 1019 | -8/Scraptown | Found DCF Scrap (29 items) 1070 | -8/Scraptown | Visited Curators Association 1101 | -8/Scraptown | Visited Junk Repository 1432 | -8/Scraptown | Visited Cartography Club 1479 | -8/Scraptown | Visited Junk Cannon Lab 1492 | -8/Scraptown | Found Prototype Special Weapon 1492 | -8/Scraptown | Identified Junk Cannon 1662 | -8/Scraptown | Visited Junk Repository 1716 | -8/Scraptown | Visited Scrap Suit Storage 1763 | -8/Scraptown | Visited Abandonware Association 1809 | -8/Scraptown | Visited Infowarlord's Domain 1821 | -8/Scraptown | Found Exp. Sensor Array 1852 | -8/Scraptown | Visited Scrapoid Research Area 2084 | -8/Scraptown | Discovered new exit (range 3) 2214 | -8/Scraptown | Met Optimus 2214 | -8/Scraptown | Accepted into 0bPrime 2310 | -8/Scraptown | Entered Factory 2310 | -6/Factory | Evolved 8 slots: Propulsion x2, Utility x6 3251 | -6/Factory | Build established: Skirmisher 3271 | -6/Factory | Fabricated R-06 Scavenger? 3580 | -6/Factory | Discovered new exit (range 11) 3601 | -6/Factory | Identified exit to Factory 3836 | -6/Factory | Build established: Mutant 4168 | -6/Factory | Entered another Factory area 4168 | -5/Factory | Evolved 2 slots: Power x1, Utility x1 4362 | -5/Factory | Found Imp. Powered Armor 4673 | -5/Factory | Build established: Skirmisher 5100 | -5/Factory | Repaired Med. Treads 5162 | -5/Factory | Discovered new exit (range 4) 5167 | -5/Factory | Identified exit to Factory 5245 | -5/Factory | Discovered new exit (range 5) 5250 | -5/Factory | Identified exit to Upper Caves 5424 | -5/Factory | Found Powered Armor 5667 | -5/Factory | Found Powered Armor 5676 | -5/Factory | Found Powered Armor 5700 | -5/Factory | Entered Upper Caves 5701 | -5/Upper Caves | Encountered a Warlord checkpoint 5992 | -5/Upper Caves | Discovered new exit (range 19) 6034 | -5/Upper Caves | Attracted the attention of an 0b10 checkpoint 6066 | -5/Upper Caves | Identified exit to Upper Caves 6087 | -5/Upper Caves | Entered another Upper Caves area 6089 | -5/Upper Caves | Discovered exit to Factory (range 9) 6196 | -5/Upper Caves | Build established: Mutant 6446 | -5/Upper Caves | Spotted B-75 Beast 6481 | -5/Upper Caves | Destroyed B-75 Beast 6572 | -5/Upper Caves | Learned Factory security intel 6595 | -5/Upper Caves | Discovered new exit (range 6) 6602 | -5/Upper Caves | Identified exit to Zhirov 6755 | -5/Upper Caves | Entered Zhirov 6755 | -5/Zhirov | Discovered new exit (range 3) 6759 | -5/Zhirov | Identified exit to Proximity Caves 6785 | -5/Zhirov | Met Zhirov 6815 | -5/Zhirov | Learned location of Quarantine (-2) 6815 | -5/Zhirov | Learned location of Testing (-3) 6815 | -5/Zhirov | Learned location of Command (-1) 6846 | -5/Zhirov | Zhirov requested help retrieving the SGEMP Prototype 6878 | -5/Zhirov | Found Alien Artifact 6878 | -5/Zhirov | Identified Transdimensional Reconstructor 6878 | -5/Zhirov | Warped through subspace 6941 | -5/Zhirov | Found Alien Artifact 6941 | -5/Zhirov | Identified Integrated Dissipator 6941 | -5/Zhirov | Installed Integrated Dissipator, increased core heat dissipation (+20) 7049 | -5/Zhirov | Entered Proximity Caves 7539 | -4/Proximity Caves | Discovered exit to Factory (range 10) 7662 | -4/Proximity Caves | Entered Factory 7662 | -4/Factory | Evolved 2 slots: Utility x1, Weapon x1 7900 | -4/Factory | Discovered new exit (range 16) 7940 | -4/Factory | Identified exit to Research 7970 | -4/Factory | Build established: Skirmisher 8192 | -4/Factory | Destroyed 8 combat bots 8294 | -4/Factory | Discovered exit to Research (range 5) 8484 | -4/Factory | Repaired Imp. Powered Armor 8598 | -4/Factory | Garrison activated, responded to threat 8619 | -4/Factory | Discovered exit to Research (range 2) 8937 | -4/Factory | Discovered exit to Research (range 15) 8947 | -4/Factory | Garrison activated, responded to threat 8985 | -4/Factory | Entered Research 8985 | -3/Research | Evolved 2 slots: Power x1, Utility x1 9269 | -3/Research | Garrison activated, responded to threat 9471 | -3/Research | Garrison activated, responded to threat 9521 | -3/Research | Destroyed 10 combat bots 9524 | -3/Research | Lost 6 parts (3n3u) 9590 | -3/Research | Released all parts (10) 9614 | -3/Research | Lost 12 parts (3p2n4u3w) 9638 | -3/Research | Found Prototype Protection 9638 | -3/Research | Identified Centrium Heavy Armor Plating 9724 | -3/Research | Core integrity fell below 50% 9732 | -3/Research | Found Prototype Device 9735 | -3/Research | First assault squad dispatched 9768 | -3/Research | Found Fusion Bomb Launcher 9815 | -3/Research | Spotted B-86 Titan 9900 | -3/Research | Lost 4 parts (1p1n1u1w) 9906 | -3/Research | Build established: Mutant 9909 | -3/Research | System corruption reached 10% 9934 | -3/Research | Core integrity fell below 20% 9977 | -3/Research | Destroyed by P-80 Master with Gamma Rifle Last Messages --------------- 09924_ Impulse Thruster Array destroyed. 09940_ =Y=DB J90WPVULRBV,IKGNZTP:UT< 09940_ P-80 Master destroyed. 09942_ Acquired 68 matter. 09943_ Acquired Adv. Target Analyzer. 09953_ Acquired System Restoration Module. 09968_ Q-thruster destroyed. 09970_ Triggered Stasis Trap. 09970_ A bubble of rippling energy engulfs the area. 09970_ Field strength at 95. 09970_ Field strength at 90. 09971_ Field strength at 85. 09972_ Field strength at 74. 09973_ Field strength at 69. 09974_ Field strength at 64. 09974_ System Restoration Module destroyed. 09975_ Field strength at 33. 09976_ Field strength at 22. 09977_ Field strength at 17. Map ----- +----------------------------------------------------+ | ?????????????????????????????????????????????????? | | ?????????????????????????????????????????????????? | | ?????????????????????????????????????????????????? | | ?????????????????????????????????????????????????? | | ?????????????????????????????????????????????????? | | ?????????????????????????????????????????????????? | | ?????????????????????????????????????????????????? | | ?????????????????????????????????????????????????? | | ?????????????????????????????????????????????????? | | ?????????????????????????????????????????????????? | | ???????????????????????????????#?????????????????? | | ?????????????????????????????? +?????????????????? | | ?????????????????????????????? #?????????????????? | | ?????????????????????????????? #?????????????????? | | ????????????????????????????? #?????????????????? | | ????????????????????????????? #?????????????????? | | ???????????????????????????? #?????????????????? | | ???????????????????????????? #?????????????????? | | ???????????????????????????? #?????????????????? | | ??????????????????????????? #?????????????????? | | ??????????????????????????? #?????????????????? | | ???????????????????######## ########??????????? | | ???????????????????# ^ #??????????? | | ???????????????????# ^ #??????????? | | ???????????????????# #??????????? | | ???????????????????# p@ p #??????????? | | ?????????########### pu####+##### #??????????? | | ?????????# # # #???????????????? | | ?????????# # # #?????##????????? | | ?????????# """"" # # ""#????? ????????? | | ?????????# """"" # # """#????? ????????? | | ?????????# """"" # # R"#????? ????????? | | ?????????# + + """#????? ????????? | | ?????????# # # ""#?????# #???????? | | ?????????# # # ####### #???????? | | ?????????########### ! # ! = ## ## #???????? | | ???########## [ ########### ## #???????? | | ???# # #?????????#!! ## #???????? | | ???# # #?????????#!] ## ######??? | | ???# + #?????????# ## #??? | | ???# # ########?????????# =## #??# | | ???# # ##########???????# ## ##?# | | ???########## # = ##########+## ### | | ???# ???# # + / | | ???# ???# # """" #### ## | | ???# ??# # """" /#??# ## | | ???# ??# + """" #??# ## | | ???# ?# # """" #??# ^"" | | ???# ! ?# # #??# "" | | ???# # #! *#??# | +----------------------------------------------------+ Best States ------------- Heat Dissipation 101 Energy Generation 64 Energy Capacity 1150 Matter Stores 300 Matter Capacity 600 Sight Range 22 Robot Scan Range 20 Terrain Scan Density 10 Power Amplification 30 Base Temperature (-) 150 Armor Coverage 800 Resistance: KI 25 Resistance: TH 25 Point Defense Rating 240 Evasion (%) 73 Targeting Accuracy 8 Target Analysis 8 Recoil Reduction 4 Particle Charging 20 Offensive Hacking 14 Defensive Hacking 10 Item Schematics ----------------- Adv. Heavy Treads | -5/Factory | Hacked KE Penetrator | -5/Factory | Hacked Enh. Fission Core | -5/Factory | Scanalyzed Assault Drone Bay | -5/Zhirov | Free Exp. Heat Sink | -5/Zhirov | Free Exp. Optical Array | -5/Zhirov | Free Imp. Arc Thrower | -5/Zhirov | Free Cld. Fission Core | -3/Research | Scanalyzed Robot Schematics ------------------ None Fabricated ------------ R-06 Scavenger | x2 | -6/Factory | Preloaded Repaired ---------- Med. Treads | 25% | -5/Factory Imp. Powered Armor | 16% | -4/Factory Alien Tech Used ----------------- Transdimensional Reconstructor Integrated Dissipator Achievements -------------- None Challenges ------------ None Game ------ Seed TechBeamChainsword Manual? 0 Play Time 03:28:24 Cumulative 170.1 hours Start 2025.08.09 @ 13:10:23 End 2025.08.10 @ 15:14:00 Sessions 3 Manual Loads 0 Difficulty Rogue Special Mode None Game No. 64 Rogue 64 Adventurer 0 Explorer 0 Win Type - Total 2 Types 2/0/0/0/0/0/0/0/0/0 Lore% 41 Gallery% 57 Achievement% 53 Wizard Run 0 Options --------- Layout 1 ASCII 0 Keyboard 1 Movement Numpad Keybinds 0 Fullscreen 1 Font 32/SmallcapsGlow Map View 50x35 Zoom Use 0% Tactical HUD 1 Map Filters NONE Filters NONE Steam 1 RUN: dce7f804-7985-4187-860b-7889eb6e8096